[Event "*** Titled Tuesday Blitz"]
[Site "Chess.com"]
[Date "2018.12.04"]
[Round "8"]
[White "M1711"]
[Black "gmjlh"]
[Result "0-1"]
[WhiteElo "2497"]
[BlackElo "2701"]
[TimeControl "180+2"]
[EndTime "14:53:11 PST"]
[Termination "gmjlh won by checkmate"]

1. e4 {[%clk 0:03:01.9]} 1... c6 {[%clk 0:03:00.6]} 2. d4 {[%clk 0:03:01.2]}
2... d5 {[%clk 0:03:01.7]} 3. Nd2 {[%clk 0:03:00.2]} 3... dxe4 {[%clk 0:03:03]}
4. Nxe4 {[%clk 0:03:02.1]} 4... Nf6 {[%clk 0:03:04.5]} 5. Nxf6+ {[%clk
0:02:59.8]} 5... exf6 {[%clk 0:03:06.4]} 6. c3 {[%clk 0:03:00.4]} 6... Bd6
{[%clk 0:03:07.1]} 7. Bd3 {[%clk 0:02:58.7]} 7... O-O {[%clk 0:03:07.9]} 8. Qc2
{[%clk 0:02:58.7]} 8... Re8+ {[%clk 0:03:09.1]} 9. Be3 {[%clk 0:03:00]} 9... h5
{[%clk 0:03:08.6]} 10. O-O-O {[%clk 0:02:59]} 10... Nd7 {[%clk 0:03:09.3]} 11.
Ne2 {[%clk 0:02:53.6]} 11... Nf8 {[%clk 0:03:04.2]} 12. Ng3 {[%clk 0:02:47.9]}
12... h4 {[%clk 0:02:14.6]} 13. Nf5 {[%clk 0:02:46]} 13... Bxf5 {[%clk
0:02:08.5]} 14. Bxf5 {[%clk 0:02:47.9]} 14... Qc7 {[%clk 0:02:07.7]} 15. g3
{[%clk 0:02:37]} 15... c5 {[%clk 0:01:58.9]} 16. gxh4 {[%clk 0:02:27.5]} 16...
Bf4 {[%clk 0:01:57.1]} 17. Qd3 {[%clk 0:02:16.7]} 17... cxd4 {[%clk 0:01:37]}
18. Qxd4 {[%clk 0:02:08.9]} 18... Bxe3+ {[%clk 0:01:28.1]} 19. fxe3 {[%clk
0:02:10.8]} 19... Rad8 {[%clk 0:01:13.6]} 20. Qf4 {[%clk 0:02:02.8]} 20... Rxd1+
{[%clk 0:01:14.2]} 21. Rxd1 {[%clk 0:02:02]} 21... Qb6 {[%clk 0:01:05.7]} 22.
Rd3 {[%clk 0:01:36.8]} 22... Re5 {[%clk 0:00:52.4]} 23. Bg4 {[%clk 0:01:22.5]}
23... Qa6 {[%clk 0:00:29.4]} 24. Rd8 {[%clk 0:00:45.5]} 24... Qa5 {[%clk
0:00:11.6]} 25. Qd4 {[%clk 0:00:43.1]} 25... Qc7 {[%clk 0:00:06.5]} 26. Rc8
{[%clk 0:00:38.6]} 26... Qe7 {[%clk 0:00:06.4]} 27. Kd2 {[%clk 0:00:18.9]} 27...
Re4 {[%clk 0:00:07.6]} 28. Qxa7 {[%clk 0:00:06.9]} 28... Rxg4 {[%clk 0:00:08.1]}
29. Qb8 {[%clk 0:00:04.2]} 29... Rg2+ {[%clk 0:00:09]} 30. Kd3 {[%clk 0:00:05]}
30... Rxb2 {[%clk 0:00:06.1]} 31. h5 {[%clk 0:00:03.3]} 31... Qd7+ {[%clk
0:00:06.3]} 32. Ke4 {[%clk 0:00:03.1]} 32... Qe6+ {[%clk 0:00:07.1]} 33. Kf3
{[%clk 0:00:03.8]} 33... Qf5+ {[%clk 0:00:07.4]} 34. Kg3 {[%clk 0:00:03.6]}
34... Qg5+ {[%clk 0:00:07.9]} 35. Kf3 {[%clk 0:00:04.5]} 35... Qg2+ {[%clk
0:00:08.7]} 36. Kf4 {[%clk 0:00:05.3]} 36... Rf2# {[%clk 0:00:10.2]} 0-1

[Event "*** Titled Tuesday Blitz"]
[Site "Chess.com"]
[Date "2018.12.04"]
[Round "8"]
[White "DiogenesSinopeus"]
[Black "vinniethepooh"]
[Result "0-1"]
[WhiteElo "2411"]
[BlackElo "2415"]
[TimeControl "180+2"]
[EndTime "14:53:17 PST"]
[Termination "vinniethepooh won by checkmate"]

1. d4 {[%clk 0:03:01.9]} 1... d5 {[%clk 0:03:00.8]} 2. c4 {[%clk 0:03:02.7]}
2... Nf6 {[%clk 0:03:01]} 3. cxd5 {[%clk 0:03:02.8]} 3... g6 {[%clk 0:03:02.7]}
4. Nf3 {[%clk 0:02:57.9]} 4... Bg7 {[%clk 0:03:02.6]} 5. e3 {[%clk 0:02:53.3]}
5... O-O {[%clk 0:03:02.8]} 6. Be2 {[%clk 0:02:54.6]} 6... Nxd5 {[%clk
0:02:58.2]} 7. e4 {[%clk 0:02:56.1]} 7... Nb6 {[%clk 0:02:58]} 8. O-O {[%clk
0:02:57.1]} 8... Bg4 {[%clk 0:02:54.2]} 9. Nbd2 {[%clk 0:02:33.9]} 9... Nc6
{[%clk 0:02:25.9]} 10. d5 {[%clk 0:02:31.7]} 10... Ne5 {[%clk 0:02:22.8]} 11.
Nxe5 {[%clk 0:02:22.7]} 11... Bxe2 {[%clk 0:02:24.7]} 12. Qxe2 {[%clk
0:01:30.8]} 12... Bxe5 {[%clk 0:02:25.1]} 13. f4 {[%clk 0:01:23.7]} 13... Bg7
{[%clk 0:02:23.9]} 14. a4 {[%clk 0:01:12]} 14... a5 {[%clk 0:01:59.6]} 15. Nf3
{[%clk 0:01:09.6]} 15... Qd7 {[%clk 0:01:56.1]} 16. Ne5 {[%clk 0:00:57.4]} 16...
Qd6 {[%clk 0:01:29.1]} 17. Nd3 {[%clk 0:00:49.3]} 17... Rfd8 {[%clk 0:01:26.4]}
18. Be3 {[%clk 0:00:47.5]} 18... e6 {[%clk 0:00:58.3]} 19. Bc5 {[%clk
0:00:43.2]} 19... Qd7 {[%clk 0:00:58.4]} 20. d6 {[%clk 0:00:33.5]} 20... Nc4
{[%clk 0:00:44.5]} 21. Rad1 {[%clk 0:00:11.3]} 21... cxd6 {[%clk 0:00:41.7]} 22.
Ne5 {[%clk 0:00:07.8]} 22... Nxe5 {[%clk 0:00:32.4]} 23. fxe5 {[%clk 0:00:09.2]}
23... Bxe5 {[%clk 0:00:32.4]} 24. Qf2 {[%clk 0:00:05.6]} 24... Qe7 {[%clk
0:00:27.4]} 25. Bb6 {[%clk 0:00:05.9]} 25... Rdc8 {[%clk 0:00:27.4]} 26. Rc1
{[%clk 0:00:06.5]} 26... Rc6 {[%clk 0:00:24]} 27. Kh1 {[%clk 0:00:07.3]} 27...
Ra6 {[%clk 0:00:18.3]} 28. Be3 {[%clk 0:00:05]} 28... Rxc1 {[%clk 0:00:16.4]}
29. Rxc1 {[%clk 0:00:05.9]} 29... Rc6 {[%clk 0:00:17.7]} 30. Rxc6 {[%clk
0:00:06.3]} 30... bxc6 {[%clk 0:00:19.6]} 31. Bh6 {[%clk 0:00:08.1]} 31... Qf6
{[%clk 0:00:12.1]} 32. Qe2 {[%clk 0:00:04.1]} 32... g5 {[%clk 0:00:08.2]} 33. h3
{[%clk 0:00:02.3]} 33... Qxh6 {[%clk 0:00:09.1]} 34. Qa6 {[%clk 0:00:02.6]}
34... Qf6 {[%clk 0:00:09.6]} 35. Qxa5 {[%clk 0:00:02.5]} 35... Qf1# {[%clk
0:00:10.5]} 0-1

[Event "*** Titled Tuesday Blitz"]
[Site "Chess.com"]
[Date "2018.12.04"]
[Round "8"]
[White "cherryandmint"]
[Black "gemarin"]
[Result "0-1"]
[WhiteElo "2666"]
[BlackElo "2053"]
[TimeControl "180+2"]
[EndTime "14:53:23 PST"]
[Termination "gemarin won by resignation"]

1. Nf3 {[%clk 0:03:01.9]} 1... d5 {[%clk 0:02:59.9]} 2. g3 {[%clk 0:03:01.5]}
2... c6 {[%clk 0:03:01.2]} 3. Bg2 {[%clk 0:02:52.1]} 3... Nf6 {[%clk 0:03:02.6]}
4. O-O {[%clk 0:02:43.9]} 4... Bf5 {[%clk 0:03:02.6]} 5. b3 {[%clk 0:02:43.7]}
5... Nbd7 {[%clk 0:03:00.5]} 6. Bb2 {[%clk 0:02:45.6]} 6... e6 {[%clk
0:02:59.9]} 7. c4 {[%clk 0:02:47.2]} 7... h6 {[%clk 0:02:57.4]} 8. Nc3 {[%clk
0:02:48.7]} 8... Be7 {[%clk 0:02:58.5]} 9. d3 {[%clk 0:02:49.6]} 9... O-O {[%clk
0:02:57.2]} 10. a3 {[%clk 0:02:49.1]} 10... a5 {[%clk 0:02:55.9]} 11. Nd4 {[%clk
0:02:43]} 11... Bh7 {[%clk 0:02:55.2]} 12. cxd5 {[%clk 0:02:44.3]} 12... exd5
{[%clk 0:02:51]} 13. e4 {[%clk 0:02:44.1]} 13... Nc5 {[%clk 0:02:44.2]} 14. b4
{[%clk 0:02:38.5]} 14... dxe4 {[%clk 0:02:29.8]} 15. dxe4 {[%clk 0:01:45.4]}
15... axb4 {[%clk 0:02:18.1]} 16. axb4 {[%clk 0:01:45]} 16... Rxa1 {[%clk
0:02:18.2]} 17. Bxa1 {[%clk 0:01:43.2]} 17... Ncxe4 {[%clk 0:02:16.1]} 18. Nxe4
{[%clk 0:01:41.4]} 18... Nxe4 {[%clk 0:02:04.3]} 19. Re1 {[%clk 0:01:07]} 19...
Nf6 {[%clk 0:01:29.3]} 20. Qb3 {[%clk 0:01:06.3]} 20... Re8 {[%clk 0:01:24.8]}
21. b5 {[%clk 0:00:35]} 21... c5 {[%clk 0:01:02]} 22. Nf3 {[%clk 0:00:16]} 22...
Bd6 {[%clk 0:00:56.1]} 23. Rd1 {[%clk 0:00:16.5]} 23... Qe7 {[%clk 0:00:53.3]}
24. Bxf6 {[%clk 0:00:07]} 24... Qxf6 {[%clk 0:00:51.9]} 25. Qd5 {[%clk
0:00:08.5]} 25... Bf8 {[%clk 0:00:30]} 26. Qxb7 {[%clk 0:00:09]} 26... Be4
{[%clk 0:00:29.9]} 27. Qd7 {[%clk 0:00:03.2]} 27... Re7 {[%clk 0:00:14.6]} 28.
Qc8 {[%clk 0:00:02.1]} 28... Bxf3 {[%clk 0:00:14.7]} 29. Rd8 {[%clk 0:00:03.2]}
29... Re1+ {[%clk 0:00:14.7]} 30. Bf1 {[%clk 0:00:04.8]} 30... Be2 {[%clk
0:00:06.6]} 31. b6 {[%clk 0:00:06.2]} 31... Bxf1 {[%clk 0:00:06.4]} 32. Rxf8+
{[%clk 0:00:06.6]} 32... Kh7 {[%clk 0:00:06.6]} 33. Rh8+ {[%clk 0:00:08.3]}
33... Kg6 {[%clk 0:00:07.2]} 34. Qg4+ {[%clk 0:00:10]} 34... Qg5 {[%clk
0:00:06.4]} 35. Qxg5+ {[%clk 0:00:07.4]} 35... hxg5 {[%clk 0:00:06.9]} 36. f3
{[%clk 0:00:06.4]} 36... Ba6+ {[%clk 0:00:07.7]} 37. Kf2 {[%clk 0:00:07.1]}
37... Rb1 {[%clk 0:00:09]} 38. Rb8 {[%clk 0:00:07.5]} 38... c4 {[%clk
0:00:09.7]} 39. Ke3 {[%clk 0:00:08.6]} 39... c3 {[%clk 0:00:09.9]} 0-1

[Event "*** Titled Tuesday Blitz"]
[Site "Chess.com"]
[Date "2018.12.04"]
[Round "8"]
[White "enriquetejedor"]
[Black "Gabrielian_Artur"]
[Result "0-1"]
[WhiteElo "2538"]
[BlackElo "2720"]
[TimeControl "180+2"]
[EndTime "14:53:24 PST"]
[Termination "Gabrielian_Artur won by resignation"]

1. e4 {[%clk 0:03:01.9]} 1... c5 {[%clk 0:03:00.7]} 2. Nc3 {[%clk 0:03:03]} 2...
d6 {[%clk 0:03:01]} 3. g3 {[%clk 0:03:04.1]} 3... Nc6 {[%clk 0:03:01.5]} 4. Bg2
{[%clk 0:03:05.6]} 4... g6 {[%clk 0:03:03.1]} 5. d3 {[%clk 0:03:06.9]} 5... Bg7
{[%clk 0:03:04.7]} 6. Nge2 {[%clk 0:03:08.8]} 6... Nf6 {[%clk 0:03:05.8]} 7. O-O
{[%clk 0:03:10.7]} 7... O-O {[%clk 0:03:06.9]} 8. h3 {[%clk 0:03:12.4]} 8... Rb8
{[%clk 0:03:07.9]} 9. f4 {[%clk 0:03:14]} 9... Nd7 {[%clk 0:03:08.2]} 10. Be3
{[%clk 0:03:15.2]} 10... b5 {[%clk 0:03:09.4]} 11. Qd2 {[%clk 0:03:16.8]} 11...
b4 {[%clk 0:03:10.6]} 12. Nd1 {[%clk 0:03:18.3]} 12... Nd4 {[%clk 0:03:11.3]}
13. Nc1 {[%clk 0:03:19.1]} 13... a5 {[%clk 0:03:11.8]} 14. c3 {[%clk 0:03:20.1]}
14... bxc3 {[%clk 0:03:12.6]} 15. bxc3 {[%clk 0:03:22]} 15... Nc6 {[%clk
0:03:13.3]} 16. Ne2 {[%clk 0:03:23.5]} 16... Ba6 {[%clk 0:03:07.2]} 17. g4
{[%clk 0:03:17.2]} 17... a4 {[%clk 0:03:07.8]} 18. Kh2 {[%clk 0:03:11.9]} 18...
a3 {[%clk 0:03:07.9]} 19. f5 {[%clk 0:03:11]} 19... Nce5 {[%clk 0:03:06]} 20.
Nf4 {[%clk 0:03:09.2]} 20... Re8 {[%clk 0:02:28.9]} 21. Nf2 {[%clk 0:03:06.1]}
21... Rb2 {[%clk 0:02:28.6]} 22. Qd1 {[%clk 0:03:07.4]} 22... Qa5 {[%clk
0:02:20.9]} 23. Ne2 {[%clk 0:03:03]} 23... Reb8 {[%clk 0:02:09.4]} 24. Kh1
{[%clk 0:02:54.9]} 24... Qb5 {[%clk 0:02:04.5]} 25. c4 {[%clk 0:02:54.9]} 25...
Qa5 {[%clk 0:02:02.3]} 26. Bg5 {[%clk 0:02:56.2]} 26... Nf6 {[%clk 0:02:02.5]}
27. Nf4 {[%clk 0:02:55.6]} 27... Rd2 {[%clk 0:01:54.5]} 28. Qe1 {[%clk
0:02:48.5]} 28... Qb4 {[%clk 0:01:51.2]} 29. Nd5 {[%clk 0:02:39.9]} 29... Nxd5
{[%clk 0:01:48.1]} 30. Bxd2 {[%clk 0:02:40.1]} 30... Qb2 {[%clk 0:01:46.2]} 31.
exd5 {[%clk 0:02:39.7]} 31... Qc2 {[%clk 0:01:20.7]} 32. Rc1 {[%clk 0:02:31.2]}
32... Qxa2 {[%clk 0:01:20.1]} 33. Bc3 {[%clk 0:02:32.8]} 33... Rb3 {[%clk
0:01:10.7]} 34. Ra1 {[%clk 0:02:26.5]} 34... Qc2 {[%clk 0:01:11.3]} 35. Bxe5
{[%clk 0:02:27.4]} 35... Bxe5 {[%clk 0:01:11.2]} 36. Qd1 {[%clk 0:02:29.1]}
36... Qc3 {[%clk 0:01:05]} 37. Rc1 {[%clk 0:02:29.1]} 37... Qb4 {[%clk
0:01:05.2]} 38. Qe2 {[%clk 0:02:28.2]} 38... Rb2 {[%clk 0:01:04.5]} 39. Rc2
{[%clk 0:02:29.3]} 39... a2 {[%clk 0:01:04]} 40. d4 {[%clk 0:02:30.7]} 40...
Bxd4 {[%clk 0:01:02.8]} 41. Rxb2 {[%clk 0:02:24.7]} 41... Qxb2 {[%clk
0:01:00.8]} 42. Qxe7 {[%clk 0:02:07.7]} 42... a1=Q {[%clk 0:01:01.7]} 43. fxg6
{[%clk 0:01:54.3]} 43... hxg6 {[%clk 0:00:56]} 44. Nd1 {[%clk 0:01:52.5]} 44...
Qb7 {[%clk 0:00:40]} 45. Qxd6 {[%clk 0:01:47.3]} 45... Bxc4 {[%clk 0:00:35.9]}
46. Re1 {[%clk 0:01:22]} 46... Kg7 {[%clk 0:00:35.5]} 47. Qg3 {[%clk 0:01:05.1]}
47... Bxd5 {[%clk 0:00:30]} 48. Ne3 {[%clk 0:01:02.2]} 48... Bxg2+ {[%clk
0:00:28.9]} 49. Nxg2 {[%clk 0:01:02.7]} 49... Qab2 {[%clk 0:00:24.1]} 50. h4
{[%clk 0:00:59.7]} 50... Qf2 {[%clk 0:00:24.3]} 0-1

[Event "*** Titled Tuesday Blitz"]
[Site "Chess.com"]
[Date "2018.12.04"]
[Round "8"]
[White "GMWSO"]
[Black "NikolaGry"]
[Result "1-0"]
[WhiteElo "2970"]
[BlackElo "2653"]
[TimeControl "180+2"]
[EndTime "14:53:45 PST"]
[Termination "GMWSO won by resignation"]

1. d4 {[%clk 0:03:01.9]} 1... d5 {[%clk 0:03:00.4]} 2. c4 {[%clk 0:03:02.7]}
2... Nc6 {[%clk 0:03:01.3]} 3. Nc3 {[%clk 0:03:01]} 3... dxc4 {[%clk 0:03:00.7]}
4. Nf3 {[%clk 0:02:53.8]} 4... Nf6 {[%clk 0:03:01.2]} 5. Bg5 {[%clk 0:02:44.3]}
5... h6 {[%clk 0:02:59.1]} 6. Bxf6 {[%clk 0:02:43.8]} 6... exf6 {[%clk 0:03:00]}
7. e3 {[%clk 0:02:45.7]} 7... Na5 {[%clk 0:03:00.1]} 8. Bxc4 {[%clk 0:02:32.3]}
8... Nxc4 {[%clk 0:03:00.1]} 9. Qa4+ {[%clk 0:02:33.9]} 9... c6 {[%clk
0:03:00.4]} 10. Qxc4 {[%clk 0:02:34.9]} 10... Be6 {[%clk 0:02:52.5]} 11. Qd3
{[%clk 0:02:35.1]} 11... Bd6 {[%clk 0:02:23.9]} 12. O-O {[%clk 0:02:26.6]} 12...
O-O {[%clk 0:02:24.4]} 13. Rfd1 {[%clk 0:02:26.6]} 13... Qa5 {[%clk 0:02:24.6]}
14. a3 {[%clk 0:02:19.5]} 14... Qh5 {[%clk 0:02:22]} 15. Ne4 {[%clk 0:02:20.1]}
15... Bc7 {[%clk 0:02:18.3]} 16. Rdc1 {[%clk 0:02:03.2]} 16... Bg4 {[%clk
0:01:49.1]} 17. Rc5 {[%clk 0:02:00.9]} 17... f5 {[%clk 0:01:44.7]} 18. Ng3
{[%clk 0:01:56.4]} 18... Bxg3 {[%clk 0:01:43.9]} 19. hxg3 {[%clk 0:01:57.4]}
19... Bxf3 {[%clk 0:01:35.7]} 20. gxf3 {[%clk 0:01:59.3]} 20... Qxf3 {[%clk
0:01:32.4]} 21. Rxf5 {[%clk 0:02:00.2]} 21... Qg4 {[%clk 0:01:29.8]} 22. Rc1
{[%clk 0:01:48.2]} 22... Rfe8 {[%clk 0:01:25.3]} 23. b4 {[%clk 0:01:46.7]} 23...
a6 {[%clk 0:01:24.5]} 24. Kg2 {[%clk 0:01:46.1]} 24... Qg6 {[%clk 0:01:17.6]}
25. Rc3 {[%clk 0:01:40.6]} 25... Rad8 {[%clk 0:01:15.2]} 26. a4 {[%clk
0:01:38.6]} 26... Rd6 {[%clk 0:00:53.7]} 27. Rfc5 {[%clk 0:01:30.1]} 27... Qg4
{[%clk 0:00:49.8]} 28. Rf5 {[%clk 0:01:16.1]} 28... Rg6 {[%clk 0:00:43.2]} 29.
Rf4 {[%clk 0:01:13.7]} 29... Qd7 {[%clk 0:00:39.1]} 30. Qf5 {[%clk 0:01:11.6]}
30... Qe7 {[%clk 0:00:35.5]} 31. Qc5 {[%clk 0:01:08.9]} 31... Qd7 {[%clk
0:00:32.8]} 32. b5 {[%clk 0:00:57.9]} 32... cxb5 {[%clk 0:00:24.8]} 33. axb5
{[%clk 0:00:59.8]} 33... Rg5 {[%clk 0:00:25.8]} 34. Qc7 {[%clk 0:00:56.1]} 34...
Qd5+ {[%clk 0:00:26.3]} 35. f3 {[%clk 0:00:40.3]} 35... axb5 {[%clk 0:00:22.9]}
36. e4 {[%clk 0:00:41.6]} 36... Qe6 {[%clk 0:00:20.1]} 37. Qxb7 {[%clk
0:00:34.7]} 37... Qg6 {[%clk 0:00:19.1]} 38. g4 {[%clk 0:00:32.9]} 38... h5
{[%clk 0:00:20.1]} 39. Qd7 {[%clk 0:00:29.9]} 39... Ra8 {[%clk 0:00:18.6]} 40.
Rc6 {[%clk 0:00:20.3]} 40... Ra2+ {[%clk 0:00:16.3]} 41. Kg3 {[%clk 0:00:21]}
41... f6 {[%clk 0:00:12.3]} 42. Rc8+ {[%clk 0:00:21.1]} 42... Kh7 {[%clk
0:00:13.2]} 43. Qe6 {[%clk 0:00:21.1]} 43... h4+ {[%clk 0:00:13]} 44. Kh3 {[%clk
0:00:21.9]} 44... Kh6 {[%clk 0:00:13.2]} 45. Qxa2 {[%clk 0:00:22.7]} 1-0

[Event "*** Titled Tuesday Blitz"]
[Site "Chess.com"]
[Date "2018.12.04"]
[Round "8"]
[White "Guenplen"]
[Black "vugarrasulov"]
[Result "1/2-1/2"]
[WhiteElo "2838"]
[BlackElo "2807"]
[TimeControl "180+2"]
[EndTime "14:53:46 PST"]
[Termination "Game drawn by repetition"]

1. d4 {[%clk 0:03:01.9]} 1... Nf6 {[%clk 0:03:01]} 2. Bf4 {[%clk 0:03:02.1]}
2... g6 {[%clk 0:03:00.9]} 3. e3 {[%clk 0:03:02.6]} 3... Bg7 {[%clk 0:03:02.2]}
4. h3 {[%clk 0:03:02.4]} 4... O-O {[%clk 0:03:03.3]} 5. c3 {[%clk 0:03:01.1]}
5... d6 {[%clk 0:03:04.2]} 6. Nf3 {[%clk 0:03:01.7]} 6... Nfd7 {[%clk
0:03:05.3]} 7. Bh2 {[%clk 0:03:01.5]} 7... e5 {[%clk 0:03:06.4]} 8. Be2 {[%clk
0:02:57.2]} 8... Nc6 {[%clk 0:03:07.2]} 9. O-O {[%clk 0:02:55.7]} 9... f5 {[%clk
0:03:07.4]} 10. b4 {[%clk 0:02:54.2]} 10... a6 {[%clk 0:02:54.7]} 11. a4 {[%clk
0:02:53.9]} 11... h6 {[%clk 0:02:54.3]} 12. Na3 {[%clk 0:02:45.4]} 12... Kh7
{[%clk 0:02:49.3]} 13. b5 {[%clk 0:02:44.9]} 13... Ne7 {[%clk 0:02:49.5]} 14.
bxa6 {[%clk 0:02:39]} 14... bxa6 {[%clk 0:02:47.9]} 15. dxe5 {[%clk 0:02:39.5]}
15... Nxe5 {[%clk 0:02:41.4]} 16. Nxe5 {[%clk 0:02:36.2]} 16... Bxe5 {[%clk
0:02:40.5]} 17. Bxe5 {[%clk 0:02:35]} 17... dxe5 {[%clk 0:02:42.4]} 18. Nc4
{[%clk 0:02:23]} 18... Qxd1 {[%clk 0:02:38.2]} 19. Rfxd1 {[%clk 0:02:22.8]}
19... e4 {[%clk 0:02:40.1]} 20. Rab1 {[%clk 0:02:09.8]} 20... Kg7 {[%clk
0:02:38]} 21. f4 {[%clk 0:02:03.3]} 21... Be6 {[%clk 0:02:29.6]} 22. Ne5 {[%clk
0:02:01.4]} 22... Rfd8 {[%clk 0:02:17.5]} 23. Rxd8 {[%clk 0:01:49.2]} 23... Rxd8
{[%clk 0:02:19.4]} 24. Bxa6 {[%clk 0:01:43.1]} 24... Nd5 {[%clk 0:02:19.1]} 25.
Bc4 {[%clk 0:01:36.7]} 25... Nxc3 {[%clk 0:02:14.3]} 26. Rc1 {[%clk 0:01:31.5]}
26... Nd5 {[%clk 0:01:47.1]} 27. Bxd5 {[%clk 0:01:31.3]} 27... Rxd5 {[%clk
0:01:49]} 28. Rxc7+ {[%clk 0:01:31.8]} 28... Kf6 {[%clk 0:01:50.6]} 29. Ra7
{[%clk 0:01:15.3]} 29... g5 {[%clk 0:01:44.6]} 30. g3 {[%clk 0:01:15.7]} 30...
Rd1+ {[%clk 0:01:39]} 31. Kf2 {[%clk 0:01:15.2]} 31... Rd2+ {[%clk 0:01:40.4]}
32. Kf1 {[%clk 0:01:11]} 32... h5 {[%clk 0:01:37.2]} 33. h4 {[%clk 0:01:09.7]}
33... gxh4 {[%clk 0:01:36.2]} 34. gxh4 {[%clk 0:01:10.8]} 34... Ra2 {[%clk
0:01:35]} 35. a5 {[%clk 0:01:10.1]} 35... Ra3 {[%clk 0:01:36.3]} 36. Kf2 {[%clk
0:01:03.8]} 36... Ra2+ {[%clk 0:01:36.7]} 37. Ke1 {[%clk 0:01:04.5]} 37... Ra3
{[%clk 0:01:37.3]} 38. Kd2 {[%clk 0:01:05.6]} 38... Ra2+ {[%clk 0:01:22.4]} 39.
Ke1 {[%clk 0:01:03.9]} 39... Ra3 {[%clk 0:01:23.6]} 40. Kd2 {[%clk 0:01:05.3]}
40... Ra2+ {[%clk 0:01:24.9]} 41. Kc3 {[%clk 0:01:06.8]} 41... Ra3+ {[%clk
0:01:26.5]} 42. Kd4 {[%clk 0:01:08.1]} 42... Ra4+ {[%clk 0:01:28]} 43. Kc5
{[%clk 0:01:09.4]} 43... Ra3 {[%clk 0:01:29.5]} 44. Kd4 {[%clk 0:00:22.7]} 44...
Ra4+ {[%clk 0:01:30.3]} 45. Kc5 {[%clk 0:00:24.1]} 45... Ra3 {[%clk 0:01:31.6]}
46. Kd6 {[%clk 0:00:17.3]} 46... Rxe3 {[%clk 0:00:52.5]} 47. Rh7 {[%clk
0:00:17.5]} 47... Bg8 {[%clk 0:00:45.7]} 48. Nd7+ {[%clk 0:00:15.3]} 48... Kg6
{[%clk 0:00:46.1]} 49. Nf8+ {[%clk 0:00:16.6]} 49... Kf6 {[%clk 0:00:47.3]} 50.
Nd7+ {[%clk 0:00:15.6]} 50... Kg6 {[%clk 0:00:48]} 51. Nf8+ {[%clk 0:00:11.4]}
51... Kf6 {[%clk 0:00:49]} 52. Nd7+ {[%clk 0:00:09]} 52... Kg6 {[%clk 0:00:50]}
53. Nf8+ {[%clk 0:00:10.2]} 53... Kf6 {[%clk 0:00:51]} 1/2-1/2

[Event "*** Titled Tuesday Blitz"]
[Site "Chess.com"]
[Date "2018.12.04"]
[Round "8"]
[White "Laico"]
[Black "Wolverine_master"]
[Result "1-0"]
[WhiteElo "2265"]
[BlackElo "2129"]
[TimeControl "180+2"]
[EndTime "14:53:48 PST"]
[Termination "Laico won by resignation"]

1. e4 {[%clk 0:03:00]} 1... d5 {[%clk 0:02:59.6]} 2. exd5 {[%clk 0:03:00.5]}
2... Qxd5 {[%clk 0:03:01.5]} 3. Nc3 {[%clk 0:03:00.7]} 3... Qd6 {[%clk
0:03:02.6]} 4. d4 {[%clk 0:02:57.7]} 4... Nf6 {[%clk 0:03:03.7]} 5. Nge2 {[%clk
0:02:56.2]} 5... a6 {[%clk 0:02:59.1]} 6. Bf4 {[%clk 0:02:51.4]} 6... Qd8 {[%clk
0:02:59.2]} 7. Qd2 {[%clk 0:02:51.8]} 7... g6 {[%clk 0:02:59.2]} 8. g3 {[%clk
0:02:52.3]} 8... Bg7 {[%clk 0:03:00.2]} 9. Bg2 {[%clk 0:02:53.4]} 9... O-O
{[%clk 0:03:00.2]} 10. Bh6 {[%clk 0:02:54.2]} 10... Nc6 {[%clk 0:02:52.1]} 11.
O-O-O {[%clk 0:02:52]} 11... e6 {[%clk 0:02:44.1]} 12. h4 {[%clk 0:02:46.8]}
12... Bxh6 {[%clk 0:02:35.3]} 13. Qxh6 {[%clk 0:02:46.2]} 13... Ng4 {[%clk
0:02:36.7]} 14. Qf4 {[%clk 0:02:46.8]} 14... e5 {[%clk 0:01:59.4]} 15. dxe5
{[%clk 0:02:41.8]} 15... Qe7 {[%clk 0:02:00.5]} 16. e6 {[%clk 0:01:45.2]} 16...
Bxe6 {[%clk 0:01:51]} 17. Rhe1 {[%clk 0:01:45.5]} 17... Qf6 {[%clk 0:01:49.9]}
18. Rd2 {[%clk 0:01:39.1]} 18... Rad8 {[%clk 0:01:24.7]} 19. Qxf6 {[%clk
0:01:28.5]} 19... Nxf6 {[%clk 0:01:24.2]} 20. Nf4 {[%clk 0:01:29.2]} 20... Rxd2
{[%clk 0:01:20.5]} 21. Kxd2 {[%clk 0:01:29.9]} 21... Rd8+ {[%clk 0:01:13.4]} 22.
Kc1 {[%clk 0:01:30.1]} 22... Bf5 {[%clk 0:00:20.3]} 23. Ncd5 {[%clk 0:01:24.9]}
23... Nxd5 {[%clk 0:00:19.3]} 24. Nxd5 {[%clk 0:01:25.7]} 24... Kg7 {[%clk
0:00:19.1]} 25. a3 {[%clk 0:01:22]} 25... Nd4 {[%clk 0:00:18.6]} 26. Ne3 {[%clk
0:01:16.4]} 26... c6 {[%clk 0:00:18.4]} 27. Nxf5+ {[%clk 0:01:15.4]} 27... Nxf5
{[%clk 0:00:18.8]} 28. Bh3 {[%clk 0:01:13.7]} 28... Nd4 {[%clk 0:00:18.7]} 29.
Re7 {[%clk 0:01:11]} 29... b5 {[%clk 0:00:16.6]} 30. c3 {[%clk 0:01:06.6]} 30...
Nb3+ {[%clk 0:00:15]} 31. Kc2 {[%clk 0:01:06.2]} 31... Nc5 {[%clk 0:00:16]} 32.
Rc7 {[%clk 0:01:02.5]} 32... Rd6 {[%clk 0:00:17]} 33. Bg2 {[%clk 0:01:03]} 33...
Kf6 {[%clk 0:00:12.4]} 34. Rxc6 {[%clk 0:01:02.3]} 34... Rxc6 {[%clk 0:00:13.6]}
35. Bxc6 {[%clk 0:01:03]} 35... Kf5 {[%clk 0:00:15.1]} 36. b4 {[%clk 0:01:03.4]}
36... Ne6 {[%clk 0:00:15.3]} 37. Bd7 {[%clk 0:01:01.9]} 37... g5 {[%clk
0:00:15.3]} 38. hxg5 {[%clk 0:01:01.5]} 38... Kxg5 {[%clk 0:00:14.7]} 39. Bxe6
{[%clk 0:01:02.4]} 39... fxe6 {[%clk 0:00:16.6]} 40. c4 {[%clk 0:01:02.3]} 40...
bxc4 {[%clk 0:00:15.4]} 41. a4 {[%clk 0:01:03.2]} 41... Kf5 {[%clk 0:00:15.4]}
42. Kc3 {[%clk 0:01:03]} 42... Ke5 {[%clk 0:00:15.8]} 43. Kxc4 {[%clk
0:01:03.4]} 43... Kd6 {[%clk 0:00:16.2]} 44. b5 {[%clk 0:01:03.2]} 44... axb5+
{[%clk 0:00:17.2]} 45. axb5 {[%clk 0:01:04.2]} 45... Kc7 {[%clk 0:00:18.5]} 46.
Kc5 {[%clk 0:01:05.3]} 46... Kb7 {[%clk 0:00:19.9]} 47. g4 {[%clk 0:01:06.1]}
47... e5 {[%clk 0:00:20.5]} 48. g5 {[%clk 0:01:05.7]} 48... e4 {[%clk
0:00:21.7]} 49. Kd4 {[%clk 0:01:06.3]} 49... Kb6 {[%clk 0:00:22.9]} 50. Kxe4
{[%clk 0:01:06.7]} 50... Kxb5 {[%clk 0:00:24.5]} 51. Ke5 {[%clk 0:01:06.7]}
51... Kc5 {[%clk 0:00:25.6]} 52. f4 {[%clk 0:01:06.8]} 52... Kc6 {[%clk
0:00:27]} 53. Ke6 {[%clk 0:01:08]} 53... Kc7 {[%clk 0:00:28.1]} 54. Ke7 {[%clk
0:01:08.7]} 54... Kc6 {[%clk 0:00:28.8]} 55. f5 {[%clk 0:01:09.9]} 55... Kd5
{[%clk 0:00:30.7]} 56. f6 {[%clk 0:01:10.8]} 56... Ke5 {[%clk 0:00:32.6]} 57. f7
{[%clk 0:01:11.3]} 57... Kf5 {[%clk 0:00:31.8]} 58. f8=Q+ {[%clk 0:01:10.9]}
58... Kxg5 {[%clk 0:00:33]} 59. Qg7+ {[%clk 0:01:11]} 59... Kf5 {[%clk 0:00:33]}
1-0